bitfinex-derivatives/quotes_SOLF0:USTF0_20260311
["timestamp","ask_amount","ask_price","bid_price","bid_amount"]
[1773257607486,7.12451383,87.364,87.32,10.305]
[1773257607786,14.42,87.428,87.29,6.11716597]
[1773257607787,3.95658572,87.413,87.351,3.69680741]
[1773257607987,3.95658572,87.404,87.351,10.301]
[1773257608789,3.95658572,87.404,87.358,10.3]
[1773257610591,3.95658572,87.404,87.365,10.3]
[1773257613086,3.95658572,87.404,87.35,3.69680741]
[1773257613892,3.95658572,87.42,87.373,10.299]
[1773257614489,10.293,87.417,87.373,10.299]
[1773257614692,3.95658572,87.417,87.373,10.299]
[1773257615795,3.95658572,87.417,87.364,3.69680741]
[1773257615796,3.95658572,87.415,87.364,3.69680741]
[1773257616391,3.95658572,87.415,87.338,3.69680741]
[1773257617297,3.95658572,87.415,87.365,10.299]
[1773257617691,3.95658572,87.415,87.354,3.69680741]
[1773257617892,3.95658572,87.487,87.391,3.69680741]
[1773257618099,3.95658572,87.487,87.398,3.69680741]
[1773257618692,3.95658572,87.463,87.398,3.69680741]
[1773257619994,3.95658572,87.463,87.417,10.293]
[1773257620194,3.95658572,87.463,87.398,3.69680741]
[1773257620799,3.95658572,87.463,87.427,10.292]
[1773257621493,3.95658572,87.463,87.391,14.42]
[1773257621494,4.0007439,87.528,87.431,3.76662776]
[1773257622001,4.0007439,87.528,87.451,3.76662776]
[1773257622301,10.281,87.525,87.476,10.286]
[1773257622692,4.0007439,87.528,87.484,10.286]
[1773257622893,4.0007439,87.572,87.485,3.76662776]
[1773257623200,4.0007439,87.565,87.485,3.76662776]
[1773257623900,4.0007439,87.557,87.486,14.05162776]
[1773257625507,14.42,87.578,87.486,14.05162776]
[1773257625508,4.0007439,87.549,87.486,14.05162776]
[1773257626005,14.2787439,87.547,87.486,14.05162776]
[1773257626202,4.0007439,87.546,87.486,14.05162776]
[1773257627409,10.278,87.545,87.486,14.05162776]
[1773257628107,10.278,87.545,87.488,10.285]
[1773257628306,4.0007439,87.546,87.47,6.11716597]
[1773257628307,4.0007439,87.546,87.489,3.76662776]
[1773257629412,4.0007439,87.545,87.489,3.76662776]
[1773257630306,4.0007439,87.545,87.489,14.05162776]
[1773257630709,4.0007439,87.545,87.489,3.76662776]
[1773257632309,10.279,87.543,87.489,3.76662776]
[1773257632612,3.97024228,87.542,87.489,3.76662776]
[1773257632812,3.97024228,87.542,87.47,6.11716597]
[1773257633012,3.97024228,87.517,87.46,3.64391732]
[1773257633915,3.97024228,87.534,87.471,3.64391732]
[1773257634610,3.97024228,87.534,87.487,3.64391732]
[1773257636417,10.28,87.533,87.487,3.64391732]
[1773257638620,3.97024228,87.534,87.487,3.64391732]
[1773257638621,3.97024228,87.534,87.491,10.285]
[1773257640525,3.97024228,87.534,87.487,3.64391732]
[1773257641323,10.28,87.532,87.487,3.64391732]
[1773257642625,10.28,87.532,87.489,10.285]
[1773257648031,10.281,87.521,87.487,3.64391732]
[1773257649429,10.28,87.528,87.487,3.64391732]
[1773257650323,14.25024228,87.528,87.487,3.64391732]
[1773257654235,10.281,87.522,87.487,3.64391732]
[1773257655536,10.282,87.516,87.487,3.64391732]
[1773257655733,3.97024228,87.528,87.461,3.64391732]
[1773257657137,3.97024228,87.528,87.463,3.64391732]
[1773257657541,10.283,87.509,87.464,10.288]
[1773257657738,10.283,87.509,87.464,13.93191732]
[1773257657939,10.283,87.509,87.465,3.64391732]
[1773257658436,14.4,87.561,87.43,14.4]
[1773257658437,2.43730269,87.54,87.48,2.43730269]
[1773257658635,20.91376919,87.627,87.441,20.582]
[1773257658636,3.97024228,87.559,87.501,3.64391732]
[1773257660332,10.279,87.538,87.501,3.64391732]
[1773257663039,3.73420409,87.545,87.501,3.64391732]
[1773257663240,3.73420409,87.545,87.392,48.77453885]
[1773257663241,3.73420409,87.581,87.505,3.7821965]
[1773257663445,3.73420409,87.581,87.511,3.7821965]
[1773257663836,3.73420409,87.602,87.533,3.7821965]
[1773257664638,3.73420409,87.602,87.546,3.7821965]
[1773257664844,10.272,87.601,87.553,3.7821965]
[1773257665046,3.73420409,87.6,87.553,3.7821965]
[1773257665347,3.73420409,87.6,87.554,10.61680837]
[1773257665547,3.73420409,87.6,87.553,3.7821965]
[1773257666246,3.73420409,87.6,87.553,14.39900487]
[1773257666447,3.73420409,87.588,87.548,10.61680837]
[1773257666743,3.73420409,87.588,87.544,10.61680837]
[1773257667141,3.73420409,87.588,87.542,10.61680837]
[1773257667341,10.274,87.582,87.543,10.61680837]
[1773257668150,10.274,87.582,87.51,6.08898689]
[1773257668151,3.73420409,87.567,87.541,10.61680837]
[1773257668344,3.73420409,87.567,87.529,10.61680837]
[1773257668548,3.73420409,87.567,87.521,10.61680837]
[1773257668746,3.73420409,87.567,87.52,10.61680837]
[1773257669051,3.73420409,87.567,87.522,10.61680837]
[1773257669239,3.73420409,87.567,87.524,10.61680837]
[1773257669747,3.73420409,87.567,87.508,3.7821965]
[1773257669748,3.73420409,87.59,87.529,3.7821965]
[1773257669947,3.73420409,87.586,87.539,10.279]
[1773257670145,3.73420409,87.586,87.536,10.61680837]
[1773257670340,3.73420409,87.586,87.531,10.61680837]
[1773257670746,14.00820409,87.583,87.538,10.279]
[1773257671544,10.274,87.583,87.538,10.279]
[1773257671745,3.73420409,87.582,87.538,10.279]
[1773257672446,3.73420409,87.597,87.539,3.7821965]
[1773257672645,3.73420409,87.61,87.543,3.7821965]
[1773257672850,3.73420409,87.61,87.544,3.7821965]
[1773257673550,3.73420409,87.607,87.558,3.7821965]
[1773257674352,3.73420409,87.607,87.529,14.38]
[1773257674353,3.73420409,87.607,87.562,3.7821965]
[1773257674653,3.73420409,87.621,87.562,3.7821965]
[1773257674952,10.27,87.614,87.57,10.275]
[1773257675150,10.27,87.614,87.562,3.7821965]
[1773257675645,3.73420409,87.636,87.569,3.7821965]
[1773257675846,3.73420409,87.67,87.577,3.7821965]
[1773257676049,3.73420409,87.641,87.577,3.7821965]
[1773257676742,3.73420409,87.641,87.578,3.7821965]
[1773257677847,3.73420409,87.629,87.56,14.39900487]
[1773257678044,3.73420409,87.629,87.55,10.61680837]
[1773257678250,3.73420409,87.628,87.544,3.7821965]
[1773257678451,3.73420409,87.602,87.544,3.7821965]
[1773257678850,3.73420409,87.602,87.531,10.61680837]
[1773257679053,3.73420409,87.602,87.53,10.61680837]
[1773257679251,3.73420409,87.602,87.545,10.61680837]
[1773257679451,3.73420409,87.602,87.522,20.90337379]
[1773257679452,3.73420409,87.602,87.541,3.7821965]
[1773257679654,3.73420409,87.602,87.542,3.7821965]
[1773257679855,3.73420409,87.602,87.558,10.277]
[1773257680748,3.96654907,87.617,87.559,3.80948595]
[1773257680956,6.08898689,87.64,87.52,6.08898689]
[1773257680957,3.96654907,87.589,87.536,10.61680837]
[1773257681145,3.96654907,87.589,87.531,10.61680837]
[1773257681345,3.96654907,87.589,87.532,3.80948595]
[1773257682550,3.96654907,87.591,87.535,10.61680837]
[1773257682751,3.96654907,87.591,87.531,14.42629432]
[1773257682955,3.96654907,87.591,87.531,3.80948595]
[1773257683558,3.96654907,87.58,87.524,10.281]
[1773257684456,14.24154907,87.574,87.524,10.281]
[1773257684656,3.96654907,87.574,87.524,10.281]
[1773257684960,3.96654907,87.605,87.534,10.28]
[1773257685160,14.23954907,87.592,87.535,3.80948595]
[1773257685356,14.23954907,87.592,87.516,14.38]
[1773257685357,14.23954907,87.592,87.54,3.80948595]
[1773257685862,14.23954907,87.592,87.541,10.279]
[1773257686066,10.274,87.583,87.54,3.80948595]
[1773257686363,3.96654907,87.592,87.54,3.80948595]
[1773257687266,14.23954907,87.591,87.54,3.80948595]
[1773257687461,3.96654907,87.59,87.53,10.61680837]
[1773257687661,3.96654907,87.59,87.531,3.80948595]
[1773257687862,14.23954907,87.59,87.539,3.80948595]
[1773257688267,14.23954907,87.59,87.549,10.278]
[1773257690269,14.23954907,87.59,87.541,10.279]
[1773257692175,10.274,87.584,87.541,10.279]
[1773257693576,3.64188484,87.589,87.54,2.43309696]
[1773257694370,13.91488484,87.587,87.54,2.43309696]
[1773257694573,3.64188484,87.587,87.54,2.43309696]
[1773257696277,3.64188484,87.587,87.535,10.61680837]
[1773257696473,3.64188484,87.587,87.53,12.71309696]
[1773257696677,3.64188484,87.587,87.53,2.43309696]
[1773257697681,3.64188484,87.587,87.54,2.43309696]
[1773257698381,3.64188484,87.582,87.54,2.43309696]
[1773257699081,3.64188484,87.579,87.55,2.43309696]
[1773257699277,14.38,87.615,87.55,2.43309696]
[1773257699278,3.64188484,87.593,87.55,2.43309696]
[1773257699879,3.64188484,87.593,87.56,2.43309696]
[1773257700280,3.64188484,87.593,87.551,24.78304173]
[1773257700281,3.64188484,87.607,87.57,2.43309696]
[1773257700872,10.271,87.605,87.57,2.43309696]
[1773257701079,10.271,87.605,87.58,2.43309696]
[1773257701384,10.27,87.613,87.58,2.43309696]
[1773257701682,3.64188484,87.622,87.58,2.43309696]
[1773257702087,10.27,87.616,87.58,2.43309696]
[1773257702277,3.64188484,87.649,87.59,2.43309696]
[1773257702480,3.64188484,87.649,87.549,20.90337379]
[1773257702481,3.64188484,87.649,87.61,2.43309696]
[1773257702880,3.64188484,87.649,87.62,2.43309696]
[1773257703074,3.64188484,87.649,87.61,2.43309696]
[1773257703280,3.64188484,87.649,87.603,10.272]
[1773257703475,3.64188484,87.649,87.62,2.43309696]
[1773257705079,3.64188484,87.649,87.61,2.43309696]
[1773257705680,3.64188484,87.649,87.603,10.272]
[1773257705887,3.64188484,87.649,87.605,10.271]
[1773257706281,3.64188484,87.649,87.589,13.93558252]
[1773257706282,3.64188484,87.673,87.612,3.88823336]
[1773257706484,3.64188484,87.673,87.625,10.269]
[1773257706986,3.64188484,87.673,87.627,3.88823336]
[1773257707185,3.64188484,87.673,87.628,10.61680837]
[1773257707383,3.64188484,87.673,87.627,3.88823336]
[1773257707684,3.64188484,87.681,87.627,3.88823336]
[1773257708182,10.263,87.679,87.627,14.50504173]
[1773257708486,14.38,87.698,87.631,3.88823336]
[1773257708487,3.64188484,87.697,87.631,3.88823336]
[1773257709386,13.90388484,87.689,87.636,10.268]
[1773257709584,3.64188484,87.688,87.636,10.268]
[1773257710187,3.64188484,87.685,87.624,10.61680837]
[1773257710489,3.64188484,87.685,87.609,14.50504173]
[1773257710788,3.64188484,87.685,87.617,3.88823336]
[1773257711880,10.263,87.673,87.622,3.88823336]
[1773257712485,3.64188484,87.685,87.622,3.88823336]
[1773257713490,3.64188484,87.681,87.624,3.88823336]
[1773257715394,10.263,87.675,87.624,3.88823336]
[1773257715993,13.90488484,87.675,87.624,3.88823336]
[1773257716195,3.64188484,87.66,87.608,3.88823336]
[1773257716394,3.64188484,87.66,87.598,10.61680837]
[1773257716589,3.64188484,87.66,87.592,3.88823336]
[1773257716792,3.64188484,87.645,87.592,3.88823336]
[1773257718195,3.64188484,87.645,87.608,10.271]
[1773257718391,3.64188484,87.673,87.609,3.88823336]
[1773257718595,10.263,87.673,87.625,3.88823336]
[1773257719196,3.64188484,87.703,87.632,10.61680837]
[1773257719388,3.64188484,87.703,87.624,3.88823336]
[1773257719793,3.73726869,87.686,87.641,10.267]
[1773257720393,3.73726869,87.683,87.633,10.268]
[1773257720592,3.73726869,87.683,87.609,10.61680837]
[1773257720794,3.73726869,87.683,87.607,3.72352064]
[1773257721501,10.265,87.662,87.617,10.27]
[1773257721800,3.73726869,87.666,87.607,3.72352064]
[1773257722000,3.73726869,87.666,87.631,10.268]
[1773257722201,3.73726869,87.666,87.607,3.72352064]
[1773257722503,3.73726869,87.666,87.596,10.61680837]
[1773257722700,3.73726869,87.657,87.596,14.34032901]
[1773257722998,3.73726869,87.657,87.597,3.72352064]
[1773257723392,3.73726869,87.654,87.61,10.271]
[1773257723803,3.73726869,87.654,87.602,10.272]
[1773257724603,3.73726869,87.639,87.593,10.273]
[1773257724802,3.73726869,87.639,87.579,3.72352064]
[1773257725003,10.266,87.648,87.601,10.272]
[1773257725801,10.267,87.641,87.601,10.272]
[1773257728403,10.267,87.641,87.601,10.272]
[1773257729603,3.73726869,87.64,87.585,3.72352064]
[1773257730200,3.73726869,87.63,87.571,3.72352064]
[1773257730398,3.73726869,87.63,87.562,3.72352064]
[1773257730699,3.73726869,87.63,87.566,3.72352064]
[1773257731307,10.27,87.617,87.568,10.276]
[1773257731902,14.00726869,87.617,87.568,10.276]
[1773257733005,3.73726869,87.614,87.568,10.276]
[1773257733302,3.73726869,87.614,87.542,10.61680837]
[1773257733497,3.73726869,87.586,87.533,3.72352064]
[1773257734100,10.274,87.585,87.533,3.72352064]
[1773257734600,3.73726869,87.584,87.542,10.279]
[1773257734804,10.274,87.583,87.533,3.72352064]
[1773257735400,3.73726869,87.584,87.533,3.72352064]
[1773257736006,3.73726869,87.584,87.539,10.279]
[1773257736211,3.73726869,87.584,87.533,3.72352064]
[1773257736905,3.73726869,87.584,87.546,10.278]
[1773257737097,3.73726869,87.584,87.534,3.72352064]
[1773257738411,10.274,87.583,87.539,10.279]
[1773257739905,3.73726869,87.584,87.546,10.278]
[1773257740408,10.273,87.59,87.546,10.278]
[1773257741006,10.274,87.584,87.539,14.15728677]
[1773257741409,3.66082047,87.598,87.539,3.87828677]
[1773257741710,3.66082047,87.639,87.556,3.87828677]
[1773257742103,10.27,87.618,87.576,10.275]
[1773257742303,3.66082047,87.617,87.557,3.87828677]
[1773257742904,10.272,87.601,87.562,10.276]
[1773257743413,13.93282047,87.601,87.557,3.87828677]
[1773257743812,13.93282047,87.601,87.558,10.277]
[1773257745114,10.272,87.598,87.558,10.277]
[1773257746616,10.272,87.598,87.557,3.87828677]
[1773257748318,10.272,87.598,87.557,14.15528677]
[1773257748716,3.66082047,87.597,87.557,10.277]
[1773257749313,3.66082047,87.595,87.548,10.278]
[1773257749518,3.66082047,87.595,87.538,10.57664102]
[1773257749718,3.66082047,87.595,87.514,10.57664102]
[1773257750017,3.66082047,87.595,87.512,3.87828677]
[1773257750417,3.98451367,87.593,87.512,3.87828677]
[1773257750915,3.98451367,87.583,87.535,10.279]
[1773257752021,3.98451367,87.583,87.535,14.2341097]
[1773257752420,10.274,87.582,87.535,14.2341097]
[1773257753317,10.275,87.577,87.535,14.2341097]
[1773257753621,3.98451367,87.576,87.52,3.9551097]
[1773257755424,3.98451367,87.576,87.533,10.28]
[1773257756128,3.98451367,87.574,87.523,10.281]
[1773257756330,3.98451367,87.574,87.506,3.9551097]
[1773257756624,3.98451367,87.589,87.512,3.9551097]
[1773257756829,3.98451367,87.589,87.513,3.9551097]
[1773257757626,3.98451367,87.589,87.535,3.9551097]
[1773257759324,3.98451367,87.589,87.516,3.9551097]
[1773257759927,3.98451367,87.576,87.516,3.9551097]
[1773257760525,3.98451367,87.592,87.516,3.9551097]
[1773257760728,3.98451367,87.592,87.52,3.9551097]
[1773257761029,3.98451367,87.592,87.529,3.9551097]
[1773257761231,3.98451367,87.592,87.554,10.277]
[1773257761822,3.98451367,87.589,87.529,10.57664102]
[1773257762022,3.98451367,87.589,87.505,3.9551097]
[1773257762522,3.98451367,87.565,87.521,10.281]
[1773257765328,3.98451367,87.565,87.518,3.9551097]
[1773257765829,10.276,87.564,87.518,3.9551097]
[1773257766227,3.98451367,87.579,87.518,3.9551097]
[1773257767429,3.98451367,87.579,87.533,10.28]
[1773257767931,10.275,87.573,87.525,10.281]
[1773257768131,3.98451367,87.572,87.525,10.281]
[1773257768826,3.98451367,87.572,87.537,10.279]
[1773257769027,3.98451367,87.629,87.561,3.9551097]
[1773257769330,3.98451367,87.629,87.57,2.43398162]
[1773257769527,3.98451367,87.62,87.57,2.43398162]
[1773257770332,10.271,87.612,87.57,2.43398162]
[1773257771029,3.98451367,87.604,87.554,10.57664102]
[1773257771229,3.98451367,87.604,87.55,13.01062264]
[1773257771431,3.98451367,87.604,87.551,10.57664102]
[1773257771629,3.98451367,87.604,87.56,2.43398162]
[1773257773333,10.272,87.603,87.563,10.276]
[1773257773532,3.98451367,87.602,87.563,10.276]
[1773257773924,3.98451367,87.602,87.57,2.43398162]
[1773257775833,3.98451367,87.593,87.55,2.43398162]
[1773257776036,3.98451367,87.593,87.545,10.57664102]
[1773257776438,10.274,87.583,87.55,2.43398162]
[1773257777534,10.274,87.583,87.55,2.43307964]
[1773257777734,10.273,87.592,87.56,2.43307964]
[1773257777940,3.98451367,87.593,87.56,2.43307964]
[1773257778535,14.25751367,87.593,87.56,2.43307964]
[1773257779637,14.25751367,87.593,87.553,10.57664102]
[1773257782638,3.9000113,87.608,87.558,10.57664102]
[1773257782840,3.9000113,87.608,87.563,10.57664102]
[1773257783142,10.273,87.596,87.563,10.57664102]
[1773257784240,10.273,87.592,87.563,10.57664102]
[1773257784439,3.9000113,87.591,87.553,10.57664102]
[1773257785048,3.9000113,87.591,87.552,10.57664102]
[1773257785746,3.9000113,87.591,87.551,10.57664102]
[1773257786146,3.9000113,87.591,87.552,10.57664102]
[1773257787442,10.273,87.589,87.552,10.57664102]
[1773257787640,14.1730113,87.589,87.552,10.57664102]
[1773257788149,14.1730113,87.589,87.553,10.57664102]
[1773257789152,14.1730113,87.589,87.554,10.57664102]
[1773257789553,14.1730113,87.589,87.553,10.57664102]
[1773257789850,10.272,87.597,87.554,3.82091689]
[1773257790154,3.9000113,87.596,87.555,10.57664102]
[1773257791048,10.274,87.586,87.555,10.57664102]
[1773257793860,10.274,87.586,87.554,14.39755791]
[1773257794059,10.274,87.586,87.555,10.57664102]
[1773257794254,3.9000113,87.586,87.555,10.57664102]
[1773257794455,3.9000113,87.586,87.534,13.93558252]
[1773257794754,3.9000113,87.586,87.514,3.82091689]
[1773257794949,10.277,87.56,87.514,3.82091689]
[1773257795150,10.277,87.56,87.514,17.75649941]
[1773257795458,10.277,87.56,87.515,3.82091689]
[1773257796252,3.9000113,87.564,87.515,3.82091689]
[1773257796253,3.9000113,87.564,87.527,10.28]
[1773257796560,3.9000113,87.564,87.515,3.82091689]
[1773257796753,10.277,87.561,87.52,10.281]
[1773257797662,14.1770113,87.561,87.515,3.82091689]
[1773257799464,14.1770113,87.561,87.516,14.10291689]
[1773257800864,14.1770113,87.561,87.52,2.43480656]
[1773257801567,10.277,87.557,87.52,2.43480656]
[1773257802261,14.13888642,87.557,87.52,2.43480656]
[1773257802566,3.86188642,87.55,87.51,16.37038908]
[1773257802764,3.86188642,87.55,87.51,2.43480656]
[1773257802964,3.86188642,87.55,87.52,2.43480656]
[1773257804068,10.278,87.548,87.52,2.43480656]
[1773257806376,10.278,87.548,87.511,3.66191041]
[1773257806872,10.278,87.548,87.496,14.38]
[1773257806873,3.86188642,87.55,87.495,3.66191041]
[1773257807070,3.86188642,87.55,87.51,2.43480656]
[1773257808374,10.278,87.545,87.51,2.43480656]
[1773257808569,3.86188642,87.588,87.541,3.66191041]
[1773257808768,3.86188642,87.588,87.56,2.43480656]
[1773257809472,10.274,87.583,87.55,2.43480656]
[1773257810072,10.274,87.583,87.541,3.66191041]
[1773257810073,3.86188642,87.588,87.56,2.43480656]
[1773257810267,3.86188642,87.588,87.541,3.66191041]
[1773257810268,3.72044055,87.602,87.57,2.43480656]
[1773257810970,3.72044055,87.592,87.55,2.43480656]
[1773257811577,3.72044055,87.592,87.56,2.43480656]
[1773257811979,3.72044055,87.583,87.55,2.43480656]
[1773257812175,3.72044055,87.583,87.54,2.43480656]
[1773257812374,3.72044055,87.583,87.55,2.43480656]
[1773257813474,10.274,87.579,87.55,2.43480656]
[1773257814181,3.72044055,87.583,87.56,2.43480656]
[1773257814382,3.72044055,87.597,87.57,2.43480656]
[1773257816884,3.72044055,87.597,87.542,3.69427394]
[1773257816885,10.273,87.594,87.56,2.43480656]
[1773257819386,3.72044055,87.597,87.56,2.43480656]
[1773257819586,3.72044055,87.597,87.57,2.43480656]
[1773257820181,3.72044055,87.596,87.543,3.69427394]
[1773257820386,3.72044055,87.596,87.56,2.43480656]
[1773257821082,10.273,87.594,87.56,2.43480656]
[1773257821382,10.273,87.594,87.543,3.69427394]
[1773257821383,14.38,87.603,87.58,2.43480656]
[1773257821586,3.72044055,87.609,87.58,2.43480656]
[1773257821981,3.72044055,87.609,87.559,3.69427394]
[1773257822277,3.72044055,87.607,87.57,2.43480656]
[1773257823489,10.272,87.596,87.57,2.43480656]
[1773257823685,3.72044055,87.607,87.57,2.43480656]
[1773257824590,14.38,87.615,87.57,2.43480656]
[1773257824591,13.99144055,87.605,87.57,2.43480656]
[1773257824887,3.72044055,87.605,87.58,2.43480656]
[1773257827483,14.38,87.62,87.56,2.43480656]
[1773257827484,3.72044055,87.604,87.56,2.43480656]
[1773257827885,3.72044055,87.604,87.548,3.69427394]
[1773257827886,3.72044055,87.604,87.55,2.43480656]
[1773257829590,10.274,87.583,87.55,2.43480656]
[1773257831493,10.275,87.571,87.55,2.43480656]
[1773257831696,3.72044055,87.587,87.55,2.43480656]
[1773257832692,10.275,87.579,87.55,2.43480656]
[1773257833591,20.542,87.611,87.525,13.93558252]
[1773257833592,3.72044055,87.576,87.54,2.43480656]
[1773257835394,10.275,87.572,87.54,2.43480656]
[1773257837093,3.72044055,87.571,87.53,2.43480656]
[1773257837699,3.72044055,87.571,87.53,2.43404655]
[1773257838598,10.277,87.561,87.53,2.43404655]
[1773257838995,3.72044055,87.571,87.53,2.43404655]
[1773257839802,10.276,87.562,87.53,2.43404655]
[1773257841297,14.2879836,87.567,87.53,2.43404655]
[1773257841602,4.0119836,87.566,87.53,2.43404655]
[1773257841900,10.277,87.557,87.53,2.43404655]
[1773257842195,4.0119836,87.566,87.53,2.43404655]
[1773257842396,4.0119836,87.564,87.53,2.43404655]
[1773257844601,4.0119836,87.562,87.53,2.43404655]
[1773257846901,10.277,87.561,87.53,2.43404655]
[1773257848904,14.2889836,87.561,87.53,2.43404655]
[1773257851301,4.0119836,87.554,87.51,6.14967388]
[1773257851503,4.0119836,87.554,87.501,13.93558252]
[1773257851700,4.0119836,87.554,87.5,2.43404655]
[1773257852105,10.279,87.536,87.5,2.43404655]
[1773257852503,10.28,87.529,87.5,2.43404655]
[1773257852709,4.0119836,87.528,87.481,13.93558252]
[1773257852904,4.0119836,87.528,87.48,26.65562907]
[1773257853104,4.0119836,87.528,87.5,2.43404655]
[1773257853506,14.38,87.539,87.501,3.71562733]
[1773257853702,10.279,87.542,87.501,3.71562733]
[1773257853899,14.2909836,87.542,87.501,3.71562733]
[1773257854104,10.279,87.538,87.501,3.71562733]
[1773257856302,4.0119836,87.541,87.501,3.71562733]
[1773257856506,4.0119836,87.541,87.5,2.43404655]
[1773257857009,4.0119836,87.53,87.491,3.71562733]
[1773257858006,4.0119836,87.519,87.48,2.43404655]
[1773257859508,4.0119836,87.519,87.481,10.286]
[1773257859705,4.0119836,87.519,87.49,2.43404655]
[1773257860709,10.281,87.523,87.49,2.43404655]
[1773257861607,10.28,87.53,87.491,4.01154052]
[1773257861808,10.28,87.53,87.5,2.43404655]
[1773257862611,3.89488212,87.555,87.51,2.43404655]
[1773257862917,14.38,87.554,87.52,2.43404655]
[1773257863108,18.27488212,87.554,87.52,2.43404655]
[1773257863608,3.89488212,87.553,87.52,2.43404655]
[1773257864516,10.278,87.546,87.52,2.43404655]
[1773257864814,3.89488212,87.553,87.52,2.43404655]
[1773257865010,3.89488212,87.553,87.471,21.16046968]
[1773257865011,10.277,87.561,87.53,6.44558707]
[1773257865213,3.89488212,87.594,87.55,2.43404655]
[1773257866114,10.274,87.582,87.55,2.43404655]
[1773257866509,3.89488212,87.594,87.56,2.43404655]
[1773257867314,10.273,87.591,87.56,2.43404655]
[1773257868624,10.273,87.591,87.55,6.44558707]
[1773257868918,10.273,87.591,87.56,2.43404655]
[1773257869912,10.273,87.591,87.55,6.44558707]
[1773257870116,10.274,87.587,87.55,6.44558707]
[1773257870511,3.7456134,87.59,87.55,2.43404655]
[1773257872224,10.273,87.587,87.55,2.43404655]
[1773257875731,3.7456134,87.579,87.537,10.63211528]
[1773257875937,3.7456134,87.579,87.54,2.43404655]
[1773257876327,3.7456134,87.579,87.55,2.43404655]
[1773257877326,10.275,87.578,87.55,2.43404655]
[1773257878032,10.275,87.578,87.54,2.43404655]
[1773257878634,3.7456134,87.579,87.54,2.43404655]
[1773257879832,3.7456134,87.579,87.55,2.43404655]
[1773257880335,3.7456134,87.579,87.54,2.43404655]
[1773257881329,3.7456134,87.579,87.531,3.93999271]
[1773257881330,10.275,87.572,87.531,3.93999271]
[1773257881838,10.275,87.572,87.54,2.43404655]
[1773257882933,3.7456134,87.579,87.55,2.43404655]
[1773257883734,10.273,87.589,87.56,2.43404655]
[1773257884038,3.7456134,87.593,87.55,2.43404655]
[1773257885337,3.7456134,87.582,87.53,6.37403926]
[1773257885939,3.7456134,87.582,87.54,2.43404655]
[1773257886439,10.276,87.569,87.54,2.43404655]
[1773257887037,10.275,87.576,87.54,2.43404655]
[1773257888539,14.0206134,87.576,87.54,2.43404655]
[1773257888936,10.275,87.57,87.54,2.43404655]
[1773257889335,10.275,87.57,87.53,6.37403926]
[1773257890636,3.7456134,87.563,87.52,2.43404655]
[1773257890836,3.7456134,87.563,87.502,14.14650266]
[1773257890837,3.7456134,87.561,87.51,2.43404655]
[1773257891735,3.7456134,87.561,87.511,3.90220345]
[1773257892037,3.7456134,87.561,87.52,2.43404655]
[1773257892442,3.7456134,87.559,87.52,2.43404655]
[1773257894542,10.277,87.556,87.52,2.43404655]
[1773257895044,14.0226134,87.556,87.52,2.43404655]
[1773257895644,3.7456134,87.555,87.52,2.43404655]
[1773257895845,3.7456134,87.551,87.51,2.43404655]
[1773257896646,3.7456134,87.551,87.5,2.43404655]
[1773257897242,3.7456134,87.534,87.5,2.43404655]
[1773257897440,3.7456134,87.534,87.491,3.84563021]
[1773257897645,3.7456134,87.534,87.5,2.43404655]
[1773257899646,3.7456134,87.534,87.5,2.43595722]
[1773257901152,10.28,87.53,87.5,2.43595722]
[1773257901351,10.28,87.53,87.491,3.84563021]
[1773257901550,3.78291304,87.529,87.491,3.84563021]
[1773257901953,14.06291304,87.528,87.491,3.84563021]
[1773257902152,3.78291304,87.527,87.49,2.43595722]
[1773257902748,3.78291304,87.523,87.477,10.63211528]
[1773257902947,3.78291304,87.523,87.453,3.77543557]
[1773257903252,3.78291304,87.523,87.473,3.77543557]
[1773257903451,3.78291304,87.523,87.48,2.43595722]
[1773257903850,3.78291304,87.523,87.49,2.43595722]
[1773257907143,10.281,87.522,87.49,2.43595722]
[1773257907348,3.78291304,87.521,87.471,3.77543557]
[1773257907547,3.78291304,87.519,87.461,3.77543557]
[1773257907748,3.78291304,87.519,87.47,2.43595722]
[1773257907950,10.282,87.512,87.48,2.43595722]
[1773257908548,10.282,87.512,87.471,3.77543557]
[1773257909354,10.282,87.512,87.472,10.287]
[1773257909957,10.283,87.509,87.471,3.77543557]
[1773257910150,3.78291304,87.508,87.471,3.77543557]
[1773257910758,3.78291304,87.505,87.46,2.43595722]
[1773257911446,3.78291304,87.505,87.463,3.77543557]
[1773257911650,3.78291304,87.505,87.47,2.43595722]